[Event "Titled Tuesday Blitz April 11 Early 2023"]
[White "Lopez, Henry"]
[Black "Palacio,Igor Da Paz"]
[WhiteFideId "5203830"]
[BlackFideId "2121140"]
[WhiteElo "2177"]
[BlackElo "2126"]
[Result "1-0"]
[Round "09"]
[TimeControl "180+2"]
[Date "2023.04.11"]
[WhiteClock "0:01:16"]
[BlackClock "0:00:02"]

1. d4 {[%clk 0:03:00]}  Nf6 {[%clk 0:02:56]} 2. Nf3 {[%clk 0:02:59]}  g6 {[%clk 0:02:56]} 3. c4 {[%clk 0:02:59]}  Bg7 {[%clk 0:02:56]} 4. Nc3 {[%clk 0:03:00]}  d6 {[%clk 0:02:57]} 5. h4 {[%clk 0:02:58]}  O-O {[%clk 0:02:55]} 6. e4 {[%clk 0:02:58]}  h6 {[%clk 0:02:49]} 7. Be2 {[%clk 0:02:57]}  c5 {[%clk 0:02:47]} 8. d5 {[%clk 0:02:56]}  e6 {[%clk 0:02:41]} 9. Bf4 {[%clk 0:02:54]}  exd5 {[%clk 0:02:37]} 10. exd5 {[%clk 0:02:53]}  Na6 {[%clk 0:02:27]} 11. Qd2 {[%clk 0:02:52]}  Kh7 {[%clk 0:02:26]} 12. Ng5+ {[%clk 0:02:45]}  Kg8 {[%clk 0:02:23]} 13. Nge4 {[%clk 0:02:44]}  Nxe4 {[%clk 0:02:16]} 14. Nxe4 {[%clk 0:02:43]}  Qe7 {[%clk 0:01:30]} 15. Nxd6 {[%clk 0:02:39]}  Nb4 {[%clk 0:01:11]} 16. Nxc8 {[%clk 0:02:36]}  Raxc8 {[%clk 0:01:10]} 17. Kf1 {[%clk 0:02:28]}  Kh7 {[%clk 0:01:06]} 18. a3 {[%clk 0:02:24]}  Na6 {[%clk 0:01:06]} 19. Bd3 {[%clk 0:02:23]}  Qf6 {[%clk 0:01:02]} 20. Rb1 {[%clk 0:02:18]}  Nc7 {[%clk 0:01:00]} 21. h5 {[%clk 0:02:12]}  Rh8 {[%clk 0:00:43]} 22. hxg6+ {[%clk 0:01:52]}  fxg6 {[%clk 0:00:43]} 23. Re1 {[%clk 0:01:40]}  Kg8 {[%clk 0:00:39]} 24. Rh3 {[%clk 0:01:33]}  g5 {[%clk 0:00:24]} 25. Be5 {[%clk 0:01:27]}  Qf7 {[%clk 0:00:17]} 26. Rf3 {[%clk 0:01:24]}  Qh5 {[%clk 0:00:16]} 27. Kg1 {[%clk 0:01:23]}  Ne8 {[%clk 0:00:11]} 28. Bf5 {[%clk 0:01:18]}  Rd8 {[%clk 0:00:07]} 29. Be6+ {[%clk 0:01:17]}  Kh7 {[%clk 0:00:07]} 30. Qd3+ {[%clk 0:01:16]}  Qg6 {[%clk 0:00:02]} 31. Bf5 {[%clk 0:01:16]} 1-0


[Site "https://www.chess.com"]

[Event "Titled Tuesday Blitz April 11 Early 2023"]
[White "Kopczynski, Michal"]
[Black "mjelcic"]
[WhiteFideId "1124200"]
[WhiteElo "2212"]
[BlackElo "2268"]
[Result "1-0"]
[Round "09"]
[TimeControl "180+2"]
[Date "2023.04.11"]
[WhiteClock "0:00:46"]
[BlackClock "0:00:38"]

1. e4 {[%clk 0:03:00]}  e5 {[%clk 0:02:59]} 2. Nf3 {[%clk 0:03:00]}  Nc6 {[%clk 0:02:59]} 3. Bb5 {[%clk 0:03:01]}  a6 {[%clk 0:02:57]} 4. Ba4 {[%clk 0:03:01]}  Nf6 {[%clk 0:02:56]} 5. d3 {[%clk 0:03:01]}  Be7 {[%clk 0:02:54]} 6. O-O {[%clk 0:03:00]}  O-O {[%clk 0:02:54]} 7. Re1 {[%clk 0:02:59]}  d6 {[%clk 0:02:51]} 8. h3 {[%clk 0:02:58]}  Be6 {[%clk 0:02:47]} 9. Nbd2 {[%clk 0:02:59]}  b5 {[%clk 0:02:47]} 10. Bb3 {[%clk 0:02:59]}  Bxb3 {[%clk 0:02:47]} 11. axb3 {[%clk 0:02:59]}  Nh5 {[%clk 0:02:37]} 12. Nf1 {[%clk 0:02:58]}  Nf4 {[%clk 0:02:34]} 13. d4 {[%clk 0:02:41]}  f5 {[%clk 0:02:20]} 14. dxe5 {[%clk 0:02:26]}  dxe5 {[%clk 0:02:13]} 15. Qxd8 {[%clk 0:02:20]}  Bxd8 {[%clk 0:02:05]} 16. exf5 {[%clk 0:02:13]}  Rxf5 {[%clk 0:02:03]} 17. Ng3 {[%clk 0:02:13]}  Nxh3+ {[%clk 0:02:01]} 18. Kh2 {[%clk 0:02:04]}  Rxf3 {[%clk 0:01:51]} 19. gxf3 {[%clk 0:02:03]}  Ng5 {[%clk 0:01:43]} 20. Kg2 {[%clk 0:01:54]}  a5 {[%clk 0:01:39]} 21. Bd2 {[%clk 0:01:47]}  b4 {[%clk 0:01:34]} 22. Ne4 {[%clk 0:01:41]}  Ne6 {[%clk 0:01:32]} 23. c3 {[%clk 0:01:32]}  Rb8 {[%clk 0:01:27]} 24. cxb4 {[%clk 0:01:26]}  axb4 {[%clk 0:01:27]} 25. Ra6 {[%clk 0:01:19]}  Ned4 {[%clk 0:01:27]} 26. Be3 {[%clk 0:01:03]}  Be7 {[%clk 0:01:07]} 27. Rc1 {[%clk 0:00:57]}  Rb6 {[%clk 0:00:52]} 28. Rxb6 {[%clk 0:00:56]}  cxb6 {[%clk 0:00:53]} 29. f4 {[%clk 0:00:55]}  exf4 {[%clk 0:00:45]} 30. Bxf4 {[%clk 0:00:51]}  Na5 {[%clk 0:00:44]} 31. Bd6 {[%clk 0:00:46]}  Bxd6 {[%clk 0:00:38]} 32. Nxd6 {[%clk 0:00:46]}  Naxb3 {[%clk 0:00:38]} 33. Rc8# {[%clk 0:00:46]} 1-0


[Site "https://www.chess.com"]

[Event "Titled Tuesday Blitz April 11 Early 2023"]
[White "Novikova, Galina"]
[Black "Novikov, Evgenij"]
[WhiteFideId "4157095"]
[BlackFideId "4125380"]
[WhiteElo "1953"]
[BlackElo "2242"]
[Result "0-1"]
[Round "09"]
[TimeControl "180+2"]
[Date "2023.04.11"]
[WhiteClock "0:00:16"]
[BlackClock "0:00:04"]

1. e4 {[%clk 0:02:56]}  c6 {[%clk 0:02:58]} 2. d4 {[%clk 0:02:55]}  d5 {[%clk 0:02:58]} 3. e5 {[%clk 0:02:55]}  Bf5 {[%clk 0:02:58]} 4. Nc3 {[%clk 0:02:55]}  e6 {[%clk 0:02:55]} 5. g4 {[%clk 0:02:54]}  Bg6 {[%clk 0:02:55]} 6. Nge2 {[%clk 0:02:55]}  f6 {[%clk 0:02:42]} 7. h4 {[%clk 0:02:53]}  Bf7 {[%clk 0:02:37]} 8. Be3 {[%clk 0:02:25]}  fxe5 {[%clk 0:02:31]} 9. dxe5 {[%clk 0:02:26]}  Nd7 {[%clk 0:02:29]} 10. f4 {[%clk 0:02:20]}  c5 {[%clk 0:02:22]} 11. Bf2 {[%clk 0:02:17]}  Ne7 {[%clk 0:02:19]} 12. Qd2 {[%clk 0:02:15]}  Nc6 {[%clk 0:02:15]} 13. O-O-O {[%clk 0:02:11]}  Qa5 {[%clk 0:01:58]} 14. Kb1 {[%clk 0:02:09]}  O-O-O {[%clk 0:01:57]} 15. Bg2 {[%clk 0:02:03]}  Nb6 {[%clk 0:01:52]} 16. b3 {[%clk 0:01:53]}  d4 {[%clk 0:01:46]} 17. Ne4 {[%clk 0:01:50]}  Nb4 {[%clk 0:01:39]} 18. Nc1 {[%clk 0:01:50]}  N6d5 {[%clk 0:01:04]} 19. Rh3 {[%clk 0:01:42]}  Be7 {[%clk 0:01:02]} 20. h5 {[%clk 0:01:41]}  h6 {[%clk 0:00:59]} 21. Bf1 {[%clk 0:01:20]}  Be8 {[%clk 0:00:45]} 22. f5 {[%clk 0:01:10]}  Rf8 {[%clk 0:00:32]} 23. Nd6+ {[%clk 0:00:57]}  Rxd6 {[%clk 0:00:29]} 24. exd6 {[%clk 0:00:58]}  Bxd6 {[%clk 0:00:30]} 25. fxe6 {[%clk 0:00:53]}  Bf4 {[%clk 0:00:28]} 26. Qe2 {[%clk 0:00:27]}  Bxc1 {[%clk 0:00:28]} 27. Kxc1 {[%clk 0:00:27]}  Nxa2+ {[%clk 0:00:23]} 28. Kb2 {[%clk 0:00:22]}  Nac3 {[%clk 0:00:23]} 29. Ra1 {[%clk 0:00:18]}  Qxa1+ {[%clk 0:00:16]} 30. Kxa1 {[%clk 0:00:19]}  Nxe2 {[%clk 0:00:16]} 31. Bxe2 {[%clk 0:00:20]}  Rxf2 {[%clk 0:00:16]} 32. Bc4 {[%clk 0:00:19]}  Bc6 {[%clk 0:00:12]} 33. Rh1 {[%clk 0:00:17]}  Kd8 {[%clk 0:00:10]} 34. Re1 {[%clk 0:00:17]}  Ke7 {[%clk 0:00:10]} 35. Re5 {[%clk 0:00:16]}  Nb4 {[%clk 0:00:06]} 36. Rxc5 {[%clk 0:00:14]}  Nxc2+ {[%clk 0:00:06]} 37. Kb2 {[%clk 0:00:15]}  Ne3+ {[%clk 0:00:06]} 38. Ka3 {[%clk 0:00:15]}  Nxc4+ {[%clk 0:00:06]} 39. Rxc4 {[%clk 0:00:16]}  Rf4 {[%clk 0:00:05]} 40. Rc1 {[%clk 0:00:14]}  Kxe6 {[%clk 0:00:05]} 41. Re1+ {[%clk 0:00:15]}  Re4 {[%clk 0:00:05]} 42. Kb4 {[%clk 0:00:16]}  Rxe1 {[%clk 0:00:04]} 0-1


[Site "https://www.chess.com"]

[Event "Titled Tuesday Blitz April 11 Early 2023"]
[White "Shapiro, Viktor"]
[Black "a-z30"]
[WhiteFideId "4175700"]
[WhiteElo "2152"]
[BlackElo "2320"]
[Result "1/2-1/2"]
[Round "09"]
[TimeControl "180+2"]
[Date "2023.04.11"]
[WhiteClock "0:01:03"]
[BlackClock "0:00:08"]

1. c4 {[%clk 0:03:00]}  d6 {[%clk 0:03:00]} 2. Nc3 {[%clk 0:03:01]}  e5 {[%clk 0:03:01]} 3. g3 {[%clk 0:03:01]}  Nf6 {[%clk 0:03:01]} 4. Bg2 {[%clk 0:03:02]}  g6 {[%clk 0:03:02]} 5. d3 {[%clk 0:03:02]}  Bg7 {[%clk 0:03:02]} 6. Rb1 {[%clk 0:03:03]}  O-O {[%clk 0:03:03]} 7. Nf3 {[%clk 0:03:03]}  Nc6 {[%clk 0:03:01]} 8. b4 {[%clk 0:03:02]}  h6 {[%clk 0:02:52]} 9. O-O {[%clk 0:03:02]}  Be6 {[%clk 0:02:51]} 10. b5 {[%clk 0:03:02]}  Ne7 {[%clk 0:02:38]} 11. e4 {[%clk 0:03:02]}  Nd7 {[%clk 0:02:29]} 12. a4 {[%clk 0:03:01]}  f5 {[%clk 0:02:13]} 13. Ba3 {[%clk 0:02:32]}  f4 {[%clk 0:02:10]} 14. Nd5 {[%clk 0:02:27]}  g5 {[%clk 0:02:09]} 15. Nd2 {[%clk 0:02:25]}  Nf6 {[%clk 0:01:50]} 16. Re1 {[%clk 0:02:14]}  Qd7 {[%clk 0:01:48]} 17. Qc2 {[%clk 0:02:08]}  Nexd5 {[%clk 0:01:43]} 18. cxd5 {[%clk 0:02:07]}  Bh3 {[%clk 0:01:44]} 19. Rbc1 {[%clk 0:01:57]}  Rf7 {[%clk 0:01:27]} 20. f3 {[%clk 0:01:50]}  Bxg2 {[%clk 0:01:24]} 21. Kxg2 {[%clk 0:01:48]}  g4 {[%clk 0:01:25]} 22. Rf1 {[%clk 0:01:47]}  gxf3+ {[%clk 0:01:23]} 23. Rxf3 {[%clk 0:01:46]}  Ng4 {[%clk 0:01:24]} 24. Nc4 {[%clk 0:01:45]}  fxg3 {[%clk 0:01:02]} 25. Rxf7 {[%clk 0:01:33]}  Qxf7 {[%clk 0:01:00]} 26. hxg3 {[%clk 0:01:33]}  Rf8 {[%clk 0:00:58]} 27. Qe2 {[%clk 0:01:32]}  Qh5 {[%clk 0:00:41]} 28. Rh1 {[%clk 0:01:28]}  Rf2+ {[%clk 0:00:39]} 29. Qxf2 {[%clk 0:01:28]}  Qxh1+ {[%clk 0:00:39]} 30. Kxh1 {[%clk 0:01:28]}  Nxf2+ {[%clk 0:00:39]} 31. Kg2 {[%clk 0:01:29]}  Nxd3 {[%clk 0:00:40]} 32. Bxd6 {[%clk 0:01:25]}  cxd6 {[%clk 0:00:39]} 33. Nxd6 {[%clk 0:01:25]}  Nc5 {[%clk 0:00:38]} 34. a5 {[%clk 0:01:25]}  b6 {[%clk 0:00:36]} 35. a6 {[%clk 0:01:24]}  Bf8 {[%clk 0:00:29]} 36. Nc8 {[%clk 0:01:25]}  Nxe4 {[%clk 0:00:23]} 37. Nxa7 {[%clk 0:01:25]}  Nc3 {[%clk 0:00:22]} 38. d6 {[%clk 0:01:17]}  Bxd6 {[%clk 0:00:19]} 39. Nc8 {[%clk 0:01:18]}  Bb8 {[%clk 0:00:18]} 40. a7 {[%clk 0:01:14]}  Bxa7 {[%clk 0:00:17]} 41. Nxa7 {[%clk 0:01:14]}  Kf7 {[%clk 0:00:16]} 42. Kf3 {[%clk 0:01:15]}  Ke6 {[%clk 0:00:16]} 43. Ke3 {[%clk 0:01:15]}  Kd5 {[%clk 0:00:15]} 44. Kd3 {[%clk 0:01:16]}  Na4 {[%clk 0:00:14]} 45. Nc6 {[%clk 0:01:12]}  Nc5+ {[%clk 0:00:12]} 46. Ke3 {[%clk 0:01:13]}  Nd7 {[%clk 0:00:12]} 47. g4 {[%clk 0:01:04]}  Kc5 {[%clk 0:00:12]} 48. Na7 {[%clk 0:01:01]}  Nf6 {[%clk 0:00:12]} 49. Kf3 {[%clk 0:01:01]}  Kd4 {[%clk 0:00:12]} 50. Nc6+ {[%clk 0:01:01]}  Kd3 {[%clk 0:00:12]} 51. Nxe5+ {[%clk 0:01:01]}  Kd4 {[%clk 0:00:11]} 52. Nf7 {[%clk 0:01:01]}  Kc5 {[%clk 0:00:09]} 53. Nxh6 {[%clk 0:01:01]}  Nxg4 {[%clk 0:00:07]} 54. Nxg4 {[%clk 0:01:02]}  Kxb5 {[%clk 0:00:08]} 55. Ne5 {[%clk 0:01:02]}  Kc5 {[%clk 0:00:08]} 56. Nd7+ {[%clk 0:01:03]}  Kc6 {[%clk 0:00:08]} 57. Nxb6 {[%clk 0:01:03]} 1/2-1/2


[Site "https://www.chess.com"]

[Event "Titled Tuesday Blitz April 11 Early 2023"]
[White "Mouhamad, Joachim"]
[Black "MunichMouse"]
[WhiteFideId "656410"]
[WhiteElo "2125"]
[BlackElo "2311"]
[Result "1-0"]
[Round "09"]
[TimeControl "180+2"]
[Date "2023.04.11"]
[WhiteClock "0:00:18"]
[BlackClock "0:00:01"]

1. e4 {[%clk 0:02:14]}  c5 {[%clk 0:02:58]} 2. Nf3 {[%clk 0:02:13]}  d6 {[%clk 0:02:59]} 3. d4 {[%clk 0:02:12]}  cxd4 {[%clk 0:02:59]} 4. Nxd4 {[%clk 0:02:12]}  Nf6 {[%clk 0:03:00]} 5. Nc3 {[%clk 0:02:12]}  a6 {[%clk 0:03:01]} 6. f3 {[%clk 0:02:12]}  e5 {[%clk 0:03:00]} 7. Nb3 {[%clk 0:02:13]}  Be6 {[%clk 0:03:00]} 8. Be3 {[%clk 0:02:12]}  Be7 {[%clk 0:02:58]} 9. Qd2 {[%clk 0:02:11]}  d5 {[%clk 0:02:59]} 10. exd5 {[%clk 0:02:09]}  Nxd5 {[%clk 0:02:59]} 11. Nxd5 {[%clk 0:02:10]}  Qxd5 {[%clk 0:03:00]} 12. Qxd5 {[%clk 0:02:09]}  Bxd5 {[%clk 0:03:00]} 13. c4 {[%clk 0:02:07]}  Bc6 {[%clk 0:02:44]} 14. Na5 {[%clk 0:01:50]}  O-O {[%clk 0:02:44]} 15. Nxc6 {[%clk 0:01:48]}  Nxc6 {[%clk 0:02:43]} 16. Bd3 {[%clk 0:01:46]}  Rfd8 {[%clk 0:02:39]} 17. Be4 {[%clk 0:01:43]}  Bb4+ {[%clk 0:02:36]} 18. Ke2 {[%clk 0:01:41]}  Nd4+ {[%clk 0:02:16]} 19. Bxd4 {[%clk 0:01:41]}  Rxd4 {[%clk 0:02:16]} 20. Rhd1 {[%clk 0:01:22]}  Rad8 {[%clk 0:02:12]} 21. Rxd4 {[%clk 0:01:08]}  Rxd4 {[%clk 0:02:13]} 22. Rd1 {[%clk 0:01:07]}  Rxd1 {[%clk 0:02:04]} 23. Kxd1 {[%clk 0:01:07]}  b6 {[%clk 0:02:05]} 24. a3 {[%clk 0:01:04]}  Bc5 {[%clk 0:02:04]} 25. b4 {[%clk 0:01:03]}  Bd4 {[%clk 0:02:03]} 26. Kc2 {[%clk 0:01:02]}  Kf8 {[%clk 0:01:58]} 27. Kb3 {[%clk 0:00:57]}  g6 {[%clk 0:01:17]} 28. Bb7 {[%clk 0:00:56]}  a5 {[%clk 0:01:16]} 29. bxa5 {[%clk 0:00:57]}  bxa5 {[%clk 0:01:17]} 30. Ka4 {[%clk 0:00:57]}  Bc5 {[%clk 0:01:12]} 31. Kxa5 {[%clk 0:00:53]}  Bxa3 {[%clk 0:01:12]} 32. Kb6 {[%clk 0:00:51]}  Ke7 {[%clk 0:00:58]} 33. c5 {[%clk 0:00:51]}  Kd8 {[%clk 0:00:58]} 34. Bd5 {[%clk 0:00:47]}  f6 {[%clk 0:00:48]} 35. Bg8 {[%clk 0:00:47]}  h6 {[%clk 0:00:47]} 36. Bh7 {[%clk 0:00:47]}  g5 {[%clk 0:00:47]} 37. Bf5 {[%clk 0:00:48]}  Bb4 {[%clk 0:00:39]} 38. Kc6 {[%clk 0:00:48]}  Ke7 {[%clk 0:00:30]} 39. Kb6 {[%clk 0:00:46]}  Kd8 {[%clk 0:00:29]} 40. Kc6 {[%clk 0:00:47]}  Ke7 {[%clk 0:00:29]} 41. Kb5 {[%clk 0:00:47]}  Ba3 {[%clk 0:00:28]} 42. Kc4 {[%clk 0:00:47]}  Bb2 {[%clk 0:00:20]} 43. Kd5 {[%clk 0:00:46]}  Ba3 {[%clk 0:00:19]} 44. Bc8 {[%clk 0:00:45]}  Bb4 {[%clk 0:00:18]} 45. Kc4 {[%clk 0:00:43]}  Ba3 {[%clk 0:00:19]} 46. Bg4 {[%clk 0:00:40]}  Bb2 {[%clk 0:00:16]} 47. Kd5 {[%clk 0:00:40]}  Ba3 {[%clk 0:00:16]} 48. c6 {[%clk 0:00:32]}  Bd6 {[%clk 0:00:15]} 49. Ke4 {[%clk 0:00:30]}  Bc7 {[%clk 0:00:09]} 50. h3 {[%clk 0:00:28]}  Bd8 {[%clk 0:00:06]} 51. Bc8 {[%clk 0:00:27]}  h5 {[%clk 0:00:02]} 52. g3 {[%clk 0:00:21]}  h4 {[%clk 0:00:02]} 53. gxh4 {[%clk 0:00:21]}  gxh4 {[%clk 0:00:03]} 54. Kf5 {[%clk 0:00:22]}  Kd6 {[%clk 0:00:03]} 55. Bd7 {[%clk 0:00:20]}  Kc7 {[%clk 0:00:01]} 56. Be8 {[%clk 0:00:20]}  Kd6 {[%clk 0:00:01]} 57. Kg4 {[%clk 0:00:18]} 1-0


[Site "https://www.chess.com"]

[Event "Titled Tuesday Blitz April 11 Early 2023"]
[White "Mordechai, Hanan"]
[Black "Kohler, Aran"]
[WhiteFideId "2804166"]
[BlackFideId "1002856"]
[WhiteElo "2324"]
[BlackElo "2303"]
[Result "1/2-1/2"]
[Round "09"]
[TimeControl "180+2"]
[Date "2023.04.11"]
[WhiteClock "0:00:07"]
[BlackClock "0:00:03"]

1. e4 {[%clk 0:03:00]}  c6 {[%clk 0:02:58]} 2. d4 {[%clk 0:03:00]}  d5 {[%clk 0:02:59]} 3. exd5 {[%clk 0:03:00]}  cxd5 {[%clk 0:02:59]} 4. Bd3 {[%clk 0:03:01]}  Nc6 {[%clk 0:02:58]} 5. c3 {[%clk 0:02:59]}  Nf6 {[%clk 0:02:58]} 6. h3 {[%clk 0:03:00]}  a6 {[%clk 0:02:57]} 7. Nf3 {[%clk 0:02:59]}  g6 {[%clk 0:02:53]} 8. O-O {[%clk 0:02:58]}  Bg7 {[%clk 0:02:53]} 9. Bf4 {[%clk 0:02:57]}  O-O {[%clk 0:02:53]} 10. Nbd2 {[%clk 0:02:57]}  Bf5 {[%clk 0:02:43]} 11. Bxf5 {[%clk 0:02:55]}  gxf5 {[%clk 0:02:43]} 12. Re1 {[%clk 0:02:49]}  e6 {[%clk 0:02:43]} 13. Nf1 {[%clk 0:02:48]}  Ne4 {[%clk 0:02:41]} 14. Qd3 {[%clk 0:02:20]}  b5 {[%clk 0:02:40]} 15. Ne5 {[%clk 0:02:17]}  Nxe5 {[%clk 0:02:40]} 16. Bxe5 {[%clk 0:02:17]}  Bxe5 {[%clk 0:02:33]} 17. dxe5 {[%clk 0:02:18]}  Qc7 {[%clk 0:02:31]} 18. f3 {[%clk 0:01:50]}  Nc5 {[%clk 0:02:20]} 19. Qe3 {[%clk 0:01:40]}  Kh8 {[%clk 0:02:12]} 20. Rad1 {[%clk 0:01:33]}  Nd7 {[%clk 0:02:08]} 21. Rd4 {[%clk 0:01:30]}  Rg8 {[%clk 0:02:04]} 22. Qh6 {[%clk 0:01:28]}  Rg6 {[%clk 0:02:02]} 23. Qe3 {[%clk 0:01:21]}  Rag8 {[%clk 0:01:59]} 24. Rd2 {[%clk 0:01:08]}  Qc5 {[%clk 0:01:51]} 25. Kh2 {[%clk 0:01:02]}  Qc4 {[%clk 0:01:43]} 26. b3 {[%clk 0:00:44]}  Qh4 {[%clk 0:01:36]} 27. Ree2 {[%clk 0:00:42]}  Qg5 {[%clk 0:00:50]} 28. Qxg5 {[%clk 0:00:41]}  Rxg5 {[%clk 0:00:49]} 29. f4 {[%clk 0:00:40]}  R5g7 {[%clk 0:00:46]} 30. c4 {[%clk 0:00:40]}  bxc4 {[%clk 0:00:45]} 31. bxc4 {[%clk 0:00:40]}  Nb6 {[%clk 0:00:46]} 32. Ne3 {[%clk 0:00:28]}  Nxc4 {[%clk 0:00:40]} 33. Nxc4 {[%clk 0:00:28]}  dxc4 {[%clk 0:00:41]} 34. Rd6 {[%clk 0:00:20]}  a5 {[%clk 0:00:29]} 35. Rc6 {[%clk 0:00:19]}  Rg3 {[%clk 0:00:23]} 36. Rxc4 {[%clk 0:00:18]}  Ra3 {[%clk 0:00:24]} 37. Rc7 {[%clk 0:00:18]}  Kg7 {[%clk 0:00:23]} 38. Rd2 {[%clk 0:00:18]}  Rf8 {[%clk 0:00:19]} 39. Ra7 {[%clk 0:00:18]}  Kg6 {[%clk 0:00:19]} 40. g3 {[%clk 0:00:17]}  Rc8 {[%clk 0:00:16]} 41. h4 {[%clk 0:00:16]}  h6 {[%clk 0:00:15]} 42. Kh3 {[%clk 0:00:15]}  Rcc3 {[%clk 0:00:14]} 43. Rg2 {[%clk 0:00:14]}  Rf3 {[%clk 0:00:14]} 44. Ra8 {[%clk 0:00:13]}  Rxf4 {[%clk 0:00:13]} 45. Rg8+ {[%clk 0:00:13]}  Kh7 {[%clk 0:00:13]} 46. Rf8 {[%clk 0:00:10]}  Kg7 {[%clk 0:00:13]} 47. Rb8 {[%clk 0:00:11]}  Re4 {[%clk 0:00:13]} 48. Rb5 {[%clk 0:00:11]}  Ree3 {[%clk 0:00:12]} 49. Kh2 {[%clk 0:00:11]}  h5 {[%clk 0:00:11]} 50. Rg1 {[%clk 0:00:11]}  Rxa2+ {[%clk 0:00:10]} 51. Rg2 {[%clk 0:00:12]}  Ree2 {[%clk 0:00:09]} 52. Rxe2 {[%clk 0:00:10]}  Rxe2+ {[%clk 0:00:10]} 53. Kh3 {[%clk 0:00:11]}  Ra2 {[%clk 0:00:10]} 54. Rc5 {[%clk 0:00:10]}  a4 {[%clk 0:00:10]} 55. Ra5 {[%clk 0:00:11]}  a3 {[%clk 0:00:10]} 56. Ra8 {[%clk 0:00:10]}  f6 {[%clk 0:00:10]} 57. Ra7+ {[%clk 0:00:10]}  Kg6 {[%clk 0:00:10]} 58. exf6 {[%clk 0:00:11]}  Kxf6 {[%clk 0:00:11]} 59. Ra6 {[%clk 0:00:11]}  Ke5 {[%clk 0:00:09]} 60. Ra5+ {[%clk 0:00:11]}  Ke4 {[%clk 0:00:10]} 61. Ra6 {[%clk 0:00:12]}  e5 {[%clk 0:00:09]} 62. Ra4+ {[%clk 0:00:13]}  Ke3 {[%clk 0:00:10]} 63. g4 {[%clk 0:00:12]}  hxg4+ {[%clk 0:00:09]} 64. Kg3 {[%clk 0:00:12]}  f4+ {[%clk 0:00:08]} 65. Kxg4 {[%clk 0:00:13]}  Rg2+ {[%clk 0:00:09]} 66. Kh3 {[%clk 0:00:13]}  Rg3+ {[%clk 0:00:08]} 67. Kh2 {[%clk 0:00:13]}  Ke2 {[%clk 0:00:07]} 68. Re4+ {[%clk 0:00:13]}  Kf3 {[%clk 0:00:08]} 69. Rxe5 {[%clk 0:00:12]}  Rg2+ {[%clk 0:00:07]} 70. Kh3 {[%clk 0:00:13]}  Rb2 {[%clk 0:00:05]} 71. Ra5 {[%clk 0:00:11]}  a2 {[%clk 0:00:05]} 72. Ra3+ {[%clk 0:00:10]}  Ke4 {[%clk 0:00:05]} 73. h5 {[%clk 0:00:11]}  f3 {[%clk 0:00:04]} 74. Kg3 {[%clk 0:00:12]}  Rg2+ {[%clk 0:00:04]} 75. Kh3 {[%clk 0:00:12]}  Rg5 {[%clk 0:00:02]} 76. Kh4 {[%clk 0:00:12]}  f2 {[%clk 0:00:01]} 77. Ra4+ {[%clk 0:00:11]}  Ke3 {[%clk 0:00:01]} 78. Ra3+ {[%clk 0:00:12]}  Kd4 {[%clk 0:00:01]} 79. Ra4+ {[%clk 0:00:12]}  Kc3 {[%clk 0:00:02]} 80. Kxg5 {[%clk 0:00:08]}  f1=Q {[%clk 0:00:02]} 81. Rxa2 {[%clk 0:00:07]}  Qg1+ {[%clk 0:00:02]} 82. Kh6 {[%clk 0:00:07]}  Qe3+ {[%clk 0:00:02]} 83. Kg6 {[%clk 0:00:06]}  Qe6+ {[%clk 0:00:03]} 84. Kg7 {[%clk 0:00:06]}  Qxa2 {[%clk 0:00:03]} 85. h6 {[%clk 0:00:07]}  Qg2+ {[%clk 0:00:03]} 86. Kh8 {[%clk 0:00:07]}  Qh3 {[%clk 0:00:03]} 87. h7 {[%clk 0:00:07]}  Qxh7+ {[%clk 0:00:03]} 88. Kxh7 {[%clk 0:00:07]} 1/2-1/2


[Site "https://www.chess.com"]

[Event "Titled Tuesday Blitz April 11 Early 2023"]
[White "Yosha_Iglesias"]
[Black "Fajdetic, Hrvoje"]
[BlackFideId "14501945"]
[WhiteElo "2449"]
[BlackElo "2185"]
[Result "0-1"]
[Round "09"]
[TimeControl "180+2"]
[Date "2023.04.11"]
[WhiteClock "0:00:05"]
[BlackClock "0:00:14"]

1. d4 {[%clk 0:03:00]}  e6 {[%clk 0:02:56]} 2. Nf3 {[%clk 0:03:01]}  f5 {[%clk 0:02:57]} 3. Nc3 {[%clk 0:02:58]}  Nf6 {[%clk 0:02:57]} 4. Bg5 {[%clk 0:02:58]}  d5 {[%clk 0:02:57]} 5. e3 {[%clk 0:02:57]}  Be7 {[%clk 0:02:55]} 6. Ne2 {[%clk 0:02:42]}  O-O {[%clk 0:02:54]} 7. Nf4 {[%clk 0:02:42]}  c5 {[%clk 0:02:54]} 8. c3 {[%clk 0:02:42]}  Nc6 {[%clk 0:02:54]} 9. Nd3 {[%clk 0:02:42]}  Ne4 {[%clk 0:02:53]} 10. Bxe7 {[%clk 0:02:41]}  Qxe7 {[%clk 0:02:54]} 11. Be2 {[%clk 0:02:39]}  b6 {[%clk 0:02:48]} 12. O-O {[%clk 0:02:36]}  Ba6 {[%clk 0:02:46]} 13. Nfe5 {[%clk 0:02:36]}  Nd8 {[%clk 0:02:32]} 14. f3 {[%clk 0:02:33]}  Bxd3 {[%clk 0:02:32]} 15. Bxd3 {[%clk 0:02:31]}  Nd6 {[%clk 0:02:25]} 16. Qd2 {[%clk 0:02:24]}  N8f7 {[%clk 0:02:23]} 17. f4 {[%clk 0:02:22]}  Nxe5 {[%clk 0:02:20]} 18. fxe5 {[%clk 0:02:22]}  Ne4 {[%clk 0:02:21]} 19. Bxe4 {[%clk 0:02:23]}  fxe4 {[%clk 0:02:20]} 20. g3 {[%clk 0:02:03]}  Rxf1+ {[%clk 0:02:13]} 21. Rxf1 {[%clk 0:02:02]}  Rf8 {[%clk 0:02:14]} 22. Rxf8+ {[%clk 0:01:59]}  Qxf8 {[%clk 0:02:13]} 23. Qf2 {[%clk 0:02:00]}  Qxf2+ {[%clk 0:01:52]} 24. Kxf2 {[%clk 0:02:00]}  h5 {[%clk 0:01:47]} 25. dxc5 {[%clk 0:01:59]}  bxc5 {[%clk 0:01:47]} 26. b4 {[%clk 0:01:53]}  cxb4 {[%clk 0:01:44]} 27. cxb4 {[%clk 0:01:53]}  Kf7 {[%clk 0:01:44]} 28. b5 {[%clk 0:00:45]}  Ke7 {[%clk 0:01:40]} 29. Ke2 {[%clk 0:00:46]}  Kd7 {[%clk 0:01:34]} 30. Kd2 {[%clk 0:00:46]}  Kc7 {[%clk 0:01:29]} 31. Kc3 {[%clk 0:00:46]}  Kb6 {[%clk 0:01:28]} 32. Kb4 {[%clk 0:00:46]}  a6 {[%clk 0:00:28]} 33. a4 {[%clk 0:00:20]}  axb5 {[%clk 0:00:25]} 34. axb5 {[%clk 0:00:20]}  g5 {[%clk 0:00:20]} 35. h3 {[%clk 0:00:19]}  h4 {[%clk 0:00:15]} 36. g4 {[%clk 0:00:17]}  Kb7 {[%clk 0:00:13]} 37. Kc5 {[%clk 0:00:14]}  Kc7 {[%clk 0:00:13]} 38. b6+ {[%clk 0:00:01]}  Kb7 {[%clk 0:00:13]} 39. Kb5 {[%clk 0:00:02]}  d4 {[%clk 0:00:14]} 40. exd4 {[%clk 0:00:03]}  e3 {[%clk 0:00:14]} 41. d5 {[%clk 0:00:04]}  e2 {[%clk 0:00:14]} 42. d6 {[%clk 0:00:04]}  e1=Q {[%clk 0:00:14]} 43. d7 {[%clk 0:00:05]}  Qd2 {[%clk 0:00:14]} 0-1


[Site "https://www.chess.com"]